bitfinex/quotes_BTCUSD_20220304
["timestamp","ask_amount","ask_price","bid_price","bid_amount"]
[1646422499735,0.112035,40332.0,40329.0,7.399e-05]
[1646422499736,0.11219318,40332.0,40329.0,7.399e-05]
[1646422500136,0.05,40331.0,40329.0,7.399e-05]
[1646422501536,0.112049,40331.0,40329.0,7.399e-05]
[1646422502037,0.05,40331.0,40329.0,7.399e-05]
[1646422502738,0.35021623,40328.0,40318.0,0.370714]
[1646422502941,0.35021623,40328.0,40320.0,0.370714]
[1646422503138,0.45021623,40328.0,40320.0,0.370714]
[1646422503339,0.19066673,40325.0,40320.0,0.3701176]
[1646422503583,0.05015819,40325.0,40324.0,0.505714]
[1646422503985,0.00015819,40325.0,40324.0,0.38311572]
[1646422504383,0.05,40327.0,40324.0,0.38311572]
[1646422504583,0.26217299,40327.0,40325.0,0.22611309]
[1646422505383,0.26217299,40327.0,40323.0,0.005]
[1646422505584,0.21275002,40325.0,40323.0,0.005]
[1646422505784,0.26275002,40325.0,40324.0,0.135]
[1646422505985,0.05,40325.0,40324.0,0.135]
[1646422506183,0.062056,40326.0,40323.0,0.005]
[1646422506382,0.062056,40326.0,40319.0,0.5]
[1646422506584,0.062056,40326.0,40320.0,0.370719]
[1646422506884,0.00015819,40325.0,40324.0,0.135]
[1646422507085,0.00015819,40325.0,40324.0,0.73274777]
[1646422507336,0.00015819,40325.0,40324.0,0.77854777]
[1646422507535,0.00015819,40325.0,40324.0,0.47854777]
[1646422507738,0.00015819,40325.0,40324.0,0.47854931]
[1646422507935,0.05,40327.0,40324.0,0.47854931]
[1646422508137,0.31351254,40327.0,40326.0,0.06203031]
[1646422508339,0.05015819,40327.0,40326.0,0.47854931]
[1646422508739,0.05015819,40327.0,40326.0,0.416519]
[1646422508937,0.05015819,40327.0,40326.0,0.47854931]
[1646422509138,0.05,40327.0,40326.0,0.43274931]
[1646422509337,0.05,40328.0,40326.0,0.43274931]
[1646422509538,0.05,40328.0,40326.0,0.370719]
[1646422509737,0.05,40328.0,40327.0,0.370719]
[1646422509938,0.05,40328.0,40327.0,0.505719]
[1646422510139,0.05,40328.0,40327.0,0.370719]
[1646422510340,0.05,40328.0,40327.0,0.505719]
[1646422510988,0.05,40328.0,40327.0,0.370719]
[1646422511391,0.05,40328.0,40327.0,0.43275085]
[1646422511789,0.05,40328.0,40327.0,0.38312041]
[1646422514748,0.00015818,40330.0,40328.0,0.370719]
[1646422515153,5.07322827,40335.0,40328.0,0.370719]
[1646422515347,0.20862039,40330.0,40328.0,0.370719]
[1646422515749,0.16916994,40329.0,40328.0,0.370719]
[1646422515948,0.21916994,40329.0,40328.0,0.370719]
[1646422516549,0.21916994,40329.0,40328.0,0.370704]
[1646422516749,0.21916994,40329.0,40320.0,0.370704]
[1646422516750,0.1240999,40327.0,40320.0,0.370704]
[1646422516950,0.0620499,40327.0,40325.0,0.370704]
[1646422517148,0.0620499,40327.0,40326.0,0.135]
[1646422517347,0.22446994,40329.0,40326.0,0.135]
[1646422517548,0.22446994,40329.0,40323.0,0.004]
[1646422517749,0.22462812,40329.0,40323.0,0.004]
[1646422517951,0.05545818,40329.0,40323.0,0.004]
[1646422518153,0.05545818,40329.0,40324.0,0.370704]
[1646422518352,0.00545818,40329.0,40320.0,0.370704]
[1646422518884,0.24974719,40322.0,40320.0,0.370704]
[1646422519085,0.24974719,40322.0,40321.0,0.135]
[1646422519287,0.24974719,40322.0,40321.0,0.505704]
[1646422519487,0.29974719,40322.0,40321.0,0.11466769]
[1646422519691,0.29974719,40322.0,40310.0,0.24194377]
[1646422519692,0.45,40320.0,40310.0,0.24194377]
[1646422519889,0.45,40320.0,40309.0,0.002]
[1646422519890,0.28633109,40311.0,40309.0,0.002]
[1646422520089,0.28633109,40311.0,40310.0,0.02047608]
[1646422520886,0.28633109,40311.0,40310.0,0.00014377]
[1646422521087,0.79236465,40311.0,40310.0,0.01620266]
[1646422521288,0.85444577,40311.0,40310.0,0.01605889]
[1646422521986,1.22514977,40311.0,40310.0,0.01605889]
[1646422522232,1.15444577,40311.0,40310.0,0.01605889]
[1646422522832,1.21968386,40311.0,40310.0,0.01605889]
[1646422523237,0.370704,40310.0,40308.0,0.00114413]
[1646422523437,1.6,40309.0,40306.0,0.001]
[1646422523637,1.6,40309.0,40290.0,0.002]
[1646422523638,0.06209802,40305.0,40292.0,0.177879]
[1646422523835,0.06209802,40305.0,40290.0,0.002]
[1646422523836,0.3,40304.0,40290.0,0.002]
[1646422524036,0.3,40304.0,40292.0,0.370704]
[1646422524037,0.05,40304.0,40292.0,0.370704]
[1646422524433,0.05,40305.0,40292.0,0.370704]
[1646422525034,0.11208402,40305.0,40292.0,0.370704]
[1646422525235,0.05840486,40302.0,40290.0,0.002]
[1646422525435,0.26580396,40298.0,40292.0,0.370704]
[1646422525634,0.11208402,40305.0,40290.0,0.002]
[1646422525635,0.05,40304.0,40290.0,0.002]
[1646422525838,0.11208402,40305.0,40292.0,0.370704]
[1646422526087,0.11208402,40305.0,40293.0,0.00016783]
[1646422526489,0.29995942,40304.0,40293.0,0.00016783]
[1646422527090,0.29995942,40304.0,40292.0,0.370704]
[1646422527287,0.29995942,40304.0,40296.0,0.00016783]
[1646422528090,0.11208402,40305.0,40297.0,0.370704]
[1646422528297,0.11208402,40305.0,40290.0,0.19745881]
[1646422528498,0.05,40305.0,40298.0,0.00016783]
[1646422528694,0.062077,40309.0,40299.0,0.370704]
[1646422528894,0.112077,40309.0,40300.0,0.3]
[1646422529096,0.112077,40309.0,40298.0,0.00016783]
[1646422529097,0.28735187,40307.0,40298.0,0.00016783]
[1646422529293,0.33735187,40307.0,40298.0,0.00016783]
[1646422529496,0.33735187,40307.0,40299.0,0.370704]
[1646422529741,0.33735187,40307.0,40300.0,0.00016782]
[1646422530738,0.33735187,40307.0,40292.0,0.49861145]
[1646422530939,0.33735187,40307.0,40301.0,0.00015569]
[1646422531438,0.06208195,40305.0,40301.0,0.00015569]
[1646422531642,0.06208195,40305.0,40304.0,0.01605889]
[1646422532040,0.33735187,40307.0,40292.0,1.35611145]
[1646422532241,0.07325125,40305.0,40301.0,0.0001557]
[1646422532541,0.13533165,40305.0,40304.0,0.01605889]
[1646422532742,0.18533165,40305.0,40301.0,0.0001557]
[1646422533140,0.18533165,40305.0,40292.0,0.4]
[1646422533141,0.18533165,40305.0,40293.0,0.370704]
[1646422533340,0.18533165,40305.0,40301.0,0.0001557]
[1646422533341,0.12325125,40305.0,40301.0,0.0001557]
[1646422533594,0.12417169,40304.0,40301.0,0.0001557]
[1646422534189,0.06208172,40304.0,40301.0,0.0001557]
[1646422534389,0.06208172,40304.0,40292.0,0.3]
[1646422534590,0.06208172,40304.0,40300.0,0.00014079]
[1646422535390,0.370704,40303.0,40300.0,0.00014079]
[1646422535591,0.370704,40303.0,40291.0,0.012]
[1646422535890,0.4328,40301.0,40300.0,0.00014079]
[1646422536090,0.420704,40301.0,40300.0,0.00014079]
[1646422536691,0.420704,40301.0,40291.0,0.012]
[1646422536891,0.05,40301.0,40291.0,0.012]
[1646422537093,0.05,40301.0,40298.0,0.0001408]
[1646422537335,0.370704,40300.0,40298.0,0.0001408]
[1646422537535,0.05462592,40299.0,40298.0,0.0001408]
[1646422537937,0.42532992,40299.0,40291.0,0.012]
[1646422538136,0.42532992,40299.0,40296.0,0.00014412]
[1646422538336,0.39255725,40298.0,40296.0,0.00014412]
[1646422538536,0.370704,40297.0,40296.0,0.00014412]
[1646422538737,0.420704,40297.0,40296.0,0.00014412]
[1646422539140,0.420704,40297.0,40291.0,0.012]
[1646422539339,0.18632083,40296.0,40294.0,0.00014413]
[1646422539537,0.370704,40295.0,40294.0,0.00014413]
[1646422540439,0.370704,40295.0,40291.0,0.012]
[1646422540637,0.370704,40295.0,40292.0,0.00014414]
[1646422541286,0.17421383,40296.0,40292.0,0.00014414]
[1646422541488,0.17421383,40296.0,40288.0,0.002]
[1646422541489,0.26847738,40294.0,40283.0,0.23117814]
[1646422541688,0.26847738,40294.0,40284.0,0.370704]
[1646422541689,0.06209765,40293.0,40284.0,0.370704]
[1646422541889,0.06209765,40293.0,40291.0,0.00014304]
[1646422542385,0.3,40292.0,40291.0,0.00014304]
[1646422542592,1.35,40291.0,40282.0,0.004]
[1646422542796,0.062122,40288.0,40282.0,0.004]
[1646422542988,0.370704,40283.0,40282.0,0.004]
[1646422544391,0.770704,40283.0,40282.0,0.001]
[1646422544590,0.670704,40283.0,40281.0,0.007]
[1646422544847,0.72774558,40282.0,40281.0,0.007]
[1646422545147,0.28576172,40284.0,40281.0,0.007]
[1646422545347,0.38576172,40284.0,40281.0,0.007]
[1646422545749,0.370704,40283.0,40281.0,0.002]
[1646422545948,0.38576172,40284.0,40281.0,0.002]
[1646422546148,0.370704,40283.0,40281.0,0.002]
[1646422546448,0.1,40282.0,40281.0,0.002]
[1646422546647,0.470704,40282.0,40281.0,0.002]
[1646422547461,0.470704,40282.0,40257.0,0.1]
[1646422547650,0.96213,40281.0,40263.0,0.40899231]
[1646422547848,0.06212557,40278.0,40270.0,0.00066942]
[1646422548495,0.20206181,40271.0,40270.0,0.00066942]
[1646422548698,0.3041792,40274.0,40271.0,0.34139804]
[1646422549100,0.36630529,40274.0,40272.0,0.370704]
[1646422549499,0.36630529,40274.0,40271.0,0.34139804]
[1646422549701,0.69975637,40273.0,40271.0,0.34139804]
[1646422549901,0.69975637,40273.0,40272.0,0.001]
[1646422549902,0.69175637,40273.0,40272.0,0.001]
[1646422550300,0.62248688,40273.0,40272.0,0.001]
[1646422552003,0.92248688,40273.0,40272.0,0.001]
[1646422552443,1.02248688,40273.0,40272.0,0.001]
[1646422553543,1.02248688,40273.0,40271.0,0.24239804]
[1646422553743,0.770704,40272.0,40271.0,0.24239804]
[1646422554645,0.470704,40272.0,40271.0,0.24239804]
[1646422557490,0.003,40273.0,40271.0,0.24239804]
[1646422558086,0.370996,40272.0,40271.0,0.24239804]
[1646422558889,0.30189488,40274.0,40271.0,0.24239804]
[1646422559087,0.370996,40273.0,40271.0,0.24239804]
[1646422559289,0.372996,40273.0,40271.0,0.24239804]
[1646422559490,0.42670887,40272.0,40271.0,0.14239804]
[1646422559741,0.370996,40272.0,40271.0,0.14239804]
[1646422559943,0.5822376,40272.0,40271.0,0.14239804]
[1646422560943,0.370996,40272.0,40271.0,0.14239804]
[1646422562044,0.57811487,40272.0,40271.0,0.14239804]
[1646422562452,0.97811487,40272.0,40269.0,0.001]
[1646422562646,0.370996,40270.0,40269.0,0.001]
[1646422562844,0.770996,40270.0,40269.0,0.001]
[1646422563043,0.970996,40270.0,40269.0,0.001]
[1646422563251,0.970996,40270.0,40261.0,0.001]
[1646422563252,0.0688285,40269.0,40261.0,0.001]
[1646422563496,0.0688285,40269.0,40267.0,0.00016723]
[1646422563497,0.370186,40268.0,40267.0,0.00016723]
[1646422563698,0.470186,40268.0,40267.0,0.00016723]
[1646422564501,0.32384126,40267.0,40261.0,0.001]
[1646422564700,0.495318,40266.0,40265.0,0.00016723]
[1646422565102,0.595318,40266.0,40265.0,0.00016723]
[1646422565502,0.895318,40266.0,40265.0,0.00016723]
[1646422565700,0.895318,40266.0,40261.0,0.001]
[1646422565901,0.37103,40264.0,40263.0,0.00115146]
[1646422566102,0.09424262,40255.0,40253.0,0.12451431]
[1646422566301,0.09424262,40255.0,40254.0,0.369733]
[1646422566500,0.46527262,40255.0,40254.0,0.174313]
[1646422566702,0.46527262,40255.0,40253.0,0.00020131]
[1646422567344,0.09424262,40255.0,40254.0,0.19542]
[1646422567544,0.09424262,40255.0,40253.0,0.12452731]
[1646422567747,0.09424262,40255.0,40254.0,0.19542]
[1646422567944,0.2458,40270.0,40255.0,0.40575738]
[1646422567945,0.124317,40264.0,40255.0,0.40575738]
[1646422568144,0.124317,40264.0,40258.0,0.124305]
[1646422568145,0.37103,40263.0,40258.0,0.124305]
[1646422568343,0.37103,40263.0,40258.0,0.174305]
[1646422568545,0.37103,40263.0,40258.0,0.236456]
[1646422568744,0.433183,40263.0,40258.0,0.174305]
[1646422569844,0.433183,40263.0,40258.0,0.236462]
[1646422570044,0.64499364,40263.0,40258.0,0.236462]
[1646422571089,0.433183,40263.0,40258.0,0.236462]
[1646422571289,0.433183,40263.0,40258.0,0.174305]
[1646422571592,0.433183,40263.0,40258.0,0.236463]
[1646422572492,0.00016665,40264.0,40262.0,0.56645]
[1646422572693,0.00016665,40264.0,40263.0,0.61645]
[1646422572893,0.37103,40272.0,40263.0,0.05]
[1646422573089,0.186475,40273.0,40263.0,0.05]
[1646422573291,0.00016665,40264.0,40262.0,0.124294]
[1646422573490,0.37103,40263.0,40262.0,0.124294]
[1646422573689,0.37103,40263.0,40261.0,0.003]
[1646422573891,0.06232165,40264.0,40261.0,0.1273]
[1646422574090,0.37103,40263.0,40261.0,0.1273]
[1646422574488,0.062155,40264.0,40261.0,0.1273]
[1646422574738,0.062155,40264.0,40262.0,0.05]
[1646422575043,0.37103,40263.0,40262.0,0.05]
[1646422576240,0.37103,40263.0,40259.0,0.17431]
[1646422577240,0.37103,40263.0,40260.0,0.124304]
[1646422578046,0.37103,40263.0,40259.0,0.062153]
[1646422578247,0.1,40262.0,40255.0,0.40589049]
[1646422578494,0.495371,40261.0,40255.0,0.40589049]
[1646422578695,0.18450178,40259.0,40255.0,0.40589049]
[1646422578896,0.37103,40258.0,40255.0,0.46792638]
[1646422579097,0.37103,40258.0,40255.0,0.46805949]
[1646422579297,0.124341,40261.0,40256.0,0.124319]
[1646422579497,0.00014056,40264.0,40256.0,0.124319]
[1646422579695,0.37103,40263.0,40256.0,0.124319]
[1646422579896,0.10014056,40264.0,40256.0,0.124319]
[1646422579897,0.37103,40262.0,40256.0,0.124319]
[1646422580102,0.003,40266.0,40259.0,0.062152]
[1646422580302,0.00014056,40264.0,40259.0,0.062152]
[1646422580499,0.062153,40263.0,40260.0,0.062149]
[1646422581701,0.37103,40262.0,40260.0,0.062149]
[1646422581900,0.062153,40263.0,40260.0,0.062149]
[1646422584450,0.37103,40262.0,40260.0,0.062149]
[1646422586200,0.37103,40262.0,40259.0,0.062152]
[1646422586802,0.37103,40260.0,40259.0,0.062152]
[1646422587002,0.37103,40260.0,40258.0,0.124303]
[1646422588206,0.37103,40260.0,40258.0,0.12421149]
[1646422588405,0.58612724,40260.0,40258.0,0.12421149]
[1646422588807,0.83055612,40260.0,40258.0,0.12421149]
[1646422589741,0.37103,40260.0,40258.0,0.12421149]
[1646422590142,0.37103,40260.0,40258.0,0.18637049]
[1646422590647,0.062153,40263.0,40258.0,0.23637049]
[1646422591043,0.00014265,40264.0,40259.0,0.062151]
[1646422591645,0.00014265,40264.0,40258.0,0.19852149]
[1646422591845,0.00314746,40263.0,40258.0,0.19852149]
[1646422592549,0.062158,40262.0,40259.0,0.062151]
[1646422593349,0.00314746,40263.0,40259.0,0.062151]
[1646422593796,0.00314746,40263.0,40260.0,0.59658036]
[1646422593991,0.00314746,40263.0,40260.0,0.72086136]
[1646422594390,0.00314746,40263.0,40262.0,0.6474156]
[1646422594790,0.00314746,40263.0,40262.0,0.2763856]
[1646422594991,0.00014264,40264.0,40262.0,0.2763856]
[1646422595390,0.00014264,40264.0,40263.0,0.37103]
[1646422595590,0.00314746,40270.0,40263.0,0.37103]
[1646422595799,0.00314746,40270.0,40266.0,0.37103]
[1646422595992,0.00314746,40270.0,40266.0,0.39558]
[1646422596191,0.3,40281.0,40270.0,7.271e-05]
[1646422596395,0.37103,40280.0,40270.0,7.271e-05]
[1646422596590,0.28701681,40277.0,40270.0,7.271e-05]
[1646422596790,0.124292,40275.0,40270.0,7.271e-05]
[1646422597242,0.37103,40274.0,40271.0,0.124277]
[1646422597842,0.06214,40273.0,40271.0,0.124277]
[1646422598044,0.37103,40272.0,40271.0,0.124277]
[1646422598243,0.06214,40273.0,40271.0,0.124277]
[1646422598645,0.37103,40274.0,40271.0,0.124277]
[1646422599244,0.37103,40275.0,40271.0,0.124277]
[1646422599645,0.37103,40275.0,40272.0,0.05]
[1646422599646,0.000152,40275.0,40272.0,0.05]
[1646422600046,0.000152,40275.0,40274.0,0.56919335]
[1646422600250,0.000152,40275.0,40272.0,0.05]
[1646422600251,0.002,40280.0,40275.0,0.433147]
[1646422600550,0.002,40280.0,40275.0,0.545269]
[1646422600750,0.00015998,40277.0,40275.0,0.545269]
[1646422600993,0.00015998,40277.0,40275.0,0.174239]
[1646422601596,0.21950622,40282.0,40275.0,0.074239]
[1646422602195,0.23453024,40285.0,40275.0,0.136361]
[1646422602196,0.062126,40283.0,40275.0,0.136361]
[1646422603295,0.28345922,40283.0,40275.0,0.136361]
[1646422603496,0.1,40285.0,40275.0,0.136361]
[1646422604099,0.37103,40284.0,40275.0,0.136361]
[1646422604295,0.00016681,40282.0,40275.0,0.136361]
[1646422604750,0.00016681,40282.0,40278.0,0.35562173]
[1646422604950,0.11027624,40286.0,40280.0,0.37103]
[1646422605151,0.13954884,40289.0,40281.0,0.29778585]
[1646422605348,0.83277624,40290.0,40281.0,0.05]
[1646422605550,0.11027624,40290.0,40281.0,0.05]
[1646422605851,0.13954884,40299.0,40287.0,0.05]
[1646422605852,0.54990927,40292.0,40287.0,0.05]
[1646422606150,0.30620927,40292.0,40287.0,0.05]
[1646422606348,0.06211,40293.0,40287.0,0.05]
[1646422606549,0.37103,40292.0,40287.0,0.05]
[1646422606948,0.06211,40293.0,40287.0,0.05]
[1646422606949,0.06211,40293.0,40287.0,0.11211]
[1646422607350,0.064106,40296.0,40289.0,0.062106]
[1646422607752,0.002,40296.0,40289.0,0.05982544]
[1646422607952,0.002,40296.0,40290.0,0.37103]
[1646422608151,0.002,40296.0,40291.0,0.062105]
[1646422608595,0.30216934,40302.0,40291.0,0.062105]
[1646422608596,0.31801517,40297.0,40291.0,0.062105]
[1646422608799,0.37103,40296.0,40291.0,0.186296]
[1646422608998,0.23337042,40292.0,40291.0,0.186296]
[1646422609203,0.23337042,40292.0,40290.0,0.12421]
[1646422609204,0.1590725,40293.0,40290.0,0.12421]
[1646422609403,0.37103,40292.0,40285.0,0.003]
[1646422609596,0.37103,40292.0,40286.0,0.062122]
[1646422609800,0.26774534,40289.0,40287.0,0.124229]
[1646422609998,0.37103,40288.0,40287.0,0.124229]
[1646422611607,0.77103,40288.0,40286.0,0.062114]
[1646422611803,0.77103,40288.0,40274.0,0.752762]
[1646422611804,0.37103,40286.0,40274.0,0.5664]
[1646422612004,0.37103,40286.0,40271.0,0.124273]
[1646422612005,0.58020949,40286.0,40271.0,0.124273]
[1646422612247,0.062135,40282.0,40272.0,0.4564]
[1646422612449,0.3083785,40279.0,40271.0,0.124273]
[1646422612648,0.37103,40278.0,40271.0,0.124273]
[1646422612848,0.56448594,40277.0,40271.0,0.124273]
[1646422613047,0.83337534,40277.0,40275.0,0.062139]
[1646422614251,0.83337534,40277.0,40272.0,0.12427]
[1646422614252,0.3,40276.0,40272.0,0.12427]
[1646422614452,0.3,40276.0,40270.0,7.271e-05]
[1646422614453,0.37103,40275.0,40270.0,7.271e-05]
[1646422614658,0.433181,40275.0,40270.0,7.271e-05]
[1646422614851,0.37103,40273.0,40270.0,7.271e-05]
[1646422615052,0.37103,40271.0,40270.0,7.271e-05]
[1646422615450,0.37103,40271.0,40268.0,0.062149]
[1646422615451,0.37103,40271.0,40269.0,0.062144]
[1646422615652,0.37103,40271.0,40269.0,0.058679]
[1646422616699,0.58391203,40270.0,40269.0,0.058679]
[1646422616896,0.37103,40270.0,40269.0,0.058679]
[1646422619199,0.5538316,40270.0,40269.0,0.058679]
[1646422619400,0.37103,40270.0,40269.0,0.058679]
[1646422620555,0.37103,40269.0,40266.0,0.124291]
[1646422620756,0.37103,40269.0,40266.0,0.174291]
[1646422621656,0.37103,40269.0,40267.0,0.062146]
[1646422622054,0.37103,40269.0,40267.0,0.04979606]
[1646422622666,0.124309,40268.0,40266.0,0.05]
[1646422622861,0.124309,40268.0,40265.0,0.186439]
[1646422622862,0.37103,40267.0,40265.0,0.186439]
[1646422623256,0.37103,40267.0,40262.0,0.062158]
[1646422623495,0.37103,40267.0,40263.0,0.00013678]
[1646422623496,0.66465105,40267.0,40263.0,0.00013678]
[1646422624394,0.37103,40267.0,40262.0,0.062158]
[1646422624695,0.37103,40267.0,40263.0,0.0001381]
[1646422625297,0.37103,40265.0,40263.0,0.2487361]
[1646422625498,0.37103,40268.0,40263.0,0.5487361]
[1646422625696,0.003,40269.0,40263.0,0.548598]
[1646422626194,0.003,40269.0,40264.0,0.05]
[1646422626395,0.003,40269.0,40267.0,0.037]
[1646422626794,0.025,40271.0,40267.0,0.037]
[1646422626995,0.37103,40270.0,40267.0,0.285561]
[1646422627453,0.28201433,40275.0,40267.0,0.51128]
[1646422627656,0.26557479,40276.0,40267.0,0.51128]
[1646422627855,0.37103,40275.0,40267.0,0.51128]
[1646422628155,0.087137,40276.0,40268.0,0.124281]
[1646422628456,0.104,40277.0,40270.0,0.30208115]
[1646422628457,0.004,40277.0,40270.0,0.30208115]
[1646422628657,0.004,40277.0,40271.0,0.424265]
[1646422628853,0.062132,40279.0,40271.0,0.424265]
[1646422629053,0.062132,40279.0,40272.0,0.124266]
[1646422629252,0.062132,40279.0,40274.0,0.05]
[1646422629755,0.025,40283.0,40275.0,0.3]
[1646422629956,0.00011651,40284.0,40276.0,0.37103]
[1646422630158,0.00011651,40284.0,40278.0,0.062119]
[1646422630361,0.00011651,40284.0,40279.0,0.67103]
[1646422630554,0.19459289,40289.0,40279.0,0.35]
[1646422630754,0.00011653,40284.0,40283.0,0.32828486]
[1646422631006,0.00011653,40284.0,40283.0,0.74931486]
[1646422631198,0.00011653,40284.0,40283.0,0.67828486]
[1646422631697,0.0006,40291.0,40283.0,0.67828486]
[1646422631898,0.00011653,40286.0,40284.0,0.186338]
[1646422632102,0.0006,40291.0,40286.0,1.25]
[1646422632302,0.0006,40291.0,40287.0,0.186304]
[1646422632600,0.0006,40291.0,40288.0,0.05]
[1646422632800,0.0006,40291.0,40289.0,0.37103]
[1646422632999,0.0006,40291.0,40290.0,0.23281472]
[1646422633199,0.0006,40291.0,40290.0,0.28281472]
[1646422633400,0.0006,40291.0,40290.0,0.05]
[1646422633800,0.37163,40291.0,40290.0,0.05]
[1646422635649,0.0006,40291.0,40290.0,0.05]
[1646422638252,0.0006,40291.0,40289.0,0.062094]
[1646422638906,0.19644075,40290.0,40289.0,0.062094]
[1646422639105,0.37103,40290.0,40289.0,0.062094]
[1646422639508,0.37163,40291.0,40289.0,0.062094]
[1646422639701,0.0006,40291.0,40289.0,0.062094]
[1646422640301,0.37103,40290.0,40289.0,0.062094]
[1646422640502,0.0006,40291.0,40289.0,0.062094]
[1646422641305,0.37103,40290.0,40289.0,0.062094]
[1646422641504,0.37103,40290.0,40289.0,0.04974406]
[1646422641706,0.0006,40291.0,40289.0,0.04974406]
[1646422641707,0.37163,40291.0,40289.0,0.04974406]
[1646422642952,0.433744,40291.0,40289.0,0.04974406]
[1646422644252,0.37163,40291.0,40289.0,0.04974406]
[1646422644453,0.0006,40291.0,40289.0,0.04974406]
[1646422647099,0.65607273,40291.0,40289.0,0.04974406]
[1646422647298,0.37103,40289.0,40288.0,0.139]
[1646422647697,0.47103,40289.0,40288.0,0.139]
[1646422648098,0.47103,40289.0,40288.0,0.10171785]
[1646422648300,0.24362098,40283.0,40276.0,0.062136]
[1646422648502,0.37103,40282.0,40277.0,0.5]
[1646422648696,0.37103,40282.0,40276.0,0.186403]
[1646422648899,0.00510598,40281.0,40276.0,0.186403]
[1646422649100,0.284966,40278.0,40276.0,0.186403]
[1646422649400,0.37103,40277.0,40276.0,0.186403]
[1646422650249,0.37103,40277.0,40276.0,0.124267]
[1646422650449,0.42673837,40276.0,40272.0,0.124279]
[1646422650650,0.37103,40275.0,40272.0,0.124279]
[1646422650847,0.37103,40275.0,40272.0,0.074279]
[1646422651250,0.12429,40276.0,40272.0,0.074279]
[1646422651251,0.56326436,40273.0,40272.0,0.074279]
[1646422651747,0.37103,40273.0,40272.0,0.049279]
[1646422654994,0.37103,40273.0,40272.0,0.04913027]
[1646422655594,0.37103,40273.0,40272.0,0.09840727]
[1646422655794,0.37103,40273.0,40272.0,0.04840727]
[1646422655995,0.37103,40273.0,40272.0,0.09840727]
[1646422656199,0.37103,40273.0,40272.0,0.04840727]
[1646422656395,0.33403,40273.0,40272.0,0.04840727]
[1646422657244,0.33403,40273.0,40272.0,0.04820727]
[1646422657443,0.33403,40273.0,40272.0,0.09820727]
[1646422658850,0.370991,40276.0,40272.0,0.09820727]
[1646422659146,0.370991,40276.0,40272.0,0.16034127]
[1646422659751,0.370991,40276.0,40271.0,0.124277]
[1646422659752,0.11513646,40275.0,40271.0,0.124277]
[1646422659950,0.11513646,40275.0,40266.0,0.00055869]
[1646422659951,0.062151,40272.0,40266.0,0.00055869]
[1646422660153,0.07978037,40260.0,40257.0,0.2448]
[1646422660348,0.07978037,40260.0,40254.0,1.2341]
[1646422660349,0.363464,40259.0,40254.0,1.2341]
[1646422660549,0.4858083,40258.0,40254.0,0.5]
[1646422660749,0.370991,40257.0,40254.0,0.5]
[1646422660998,0.370991,40257.0,40254.0,0.06217]
[1646422661198,0.062167,40256.0,40254.0,0.06217]
[1646422661403,0.363464,40255.0,40253.0,0.18669231]
[1646422661998,0.07978037,40260.0,40253.0,0.18669231]
[1646422661999,0.370991,40259.0,40253.0,0.18669231]
[1646422662400,0.370991,40259.0,40253.0,0.23669231]
[1646422663404,0.62522883,40259.0,40254.0,0.124325]
[1646422663600,0.68738883,40259.0,40255.0,0.05]
[1646422664204,0.24619631,40256.0,40253.0,0.00020131]
[1646422664405,0.24619631,40256.0,40255.0,0.0001674]
[1646422664406,0.74154231,40256.0,40255.0,0.0001674]
[1646422664600,1.04154231,40256.0,40255.0,0.0001674]
[1646422664847,1.613464,40255.0,40247.0,0.08173923]
[1646422665050,1.713464,40255.0,40247.0,0.08173923]
[1646422665447,1.713464,40255.0,40246.0,0.0022]
[1646422665649,0.0458,40254.0,40246.0,0.0022]
[1646422665853,0.62215801,40248.0,40246.0,0.0022]
[1646422666049,0.97215801,40248.0,40246.0,0.0022]
[1646422666246,0.470991,40247.0,40246.0,0.0022]
[1646422667048,0.1,40247.0,40246.0,0.0022]
[1646422667248,0.370991,40247.0,40246.0,0.0022]
[1646422667648,0.470991,40247.0,40246.0,0.0022]
[1646422671507,0.370991,40247.0,40246.0,0.0022]
[1646422671702,0.067181,40248.0,40246.0,0.0022]
[1646422672348,0.370991,40247.0,40246.0,0.0022]
[1646422676795,0.004,40250.0,40246.0,0.373191]
[1646422677001,0.96000001,40251.0,40247.0,0.31645231]
[1646422677194,0.96000001,40251.0,40249.0,0.370991]
[1646422677395,0.96000001,40251.0,40250.0,0.370991]
[1646422678094,0.96000001,40251.0,40250.0,0.395541]
[1646422678294,0.96000001,40251.0,40250.0,0.675314]
[1646422678295,0.27267627,40251.0,40250.0,0.675314]
[1646422678499,0.00511972,40265.0,40256.0,0.24140085]
[1646422678696,0.45613054,40265.0,40257.0,0.062153]
[1646422678899,0.2398,40272.0,40258.0,0.370991]
[1646422678900,0.24000001,40261.0,40258.0,0.370991]
[1646422679097,0.24000001,40261.0,40260.0,0.370991]
[1646422679398,0.27561972,40274.0,40261.0,1.1]
[1646422679399,0.025,40274.0,40261.0,1.1]
[1646422679601,0.31198468,40271.0,40262.0,0.20134099]
[1646422679855,0.53163117,40271.0,40262.0,0.20134099]
[1646422680056,0.00016853,40270.0,40262.0,0.20134099]
[1646422680255,0.00016853,40270.0,40264.0,0.06214]
[1646422680554,0.00016853,40270.0,40264.0,0.11214]
[1646422680954,0.24000001,40267.0,40264.0,0.11214]
[1646422681158,0.24000001,40267.0,40265.0,0.371031]
[1646422681355,0.24000001,40267.0,40264.0,0.120906]
[1646422682455,0.24000001,40267.0,40265.0,0.371031]
[1646422682655,0.24000001,40267.0,40265.0,0.404347]
[1646422682857,0.24000001,40267.0,40265.0,0.379797]
[1646422683154,0.24000001,40267.0,40265.0,0.371031]
[1646422685899,0.24000001,40267.0,40264.0,0.11214]
[1646422686099,0.24000001,40267.0,40266.0,0.371031]
[1646422686299,0.24000001,40267.0,40265.0,0.371031]
[1646422686499,0.24000001,40267.0,40266.0,0.371031]
[1646422686702,0.24000001,40267.0,40264.0,0.11214]
[1646422687549,0.32178344,40265.0,40263.0,0.124279]
[1646422687746,0.371031,40264.0,40263.0,0.124279]